fUST/lending_fUST_20250808
["ID","MTS","AMOUNT","RATE_DAILY","PERIOD"]
[377934198,1754615442852,-200.0,0.00021911,2]
[377934200,1754615442866,-500.0,0.00021911,2]
[377934202,1754615442878,-500.0,0.00021911,2]
[377934204,1754615442888,-500.0,0.00021911,2]
[377934206,1754615442899,-523.06169927,0.00021911,2]
[377934208,1754615442920,-500.0,0.00021911,2]
[377934210,1754615442931,-500.0,0.00021911,2]
[377934212,1754615442941,-500.0,0.00021911,2]
[377934214,1754615442953,-500.0,0.00021911,2]
[377934216,1754615442964,-500.0,0.00021911,2]
[377934218,1754615442976,-250.93750928,0.00021911,2]
[377934220,1754615442987,-500.0,0.00021911,2]
[377934222,1754615442998,-296.32496013,0.00021911,2]
[377934224,1754615443013,-500.0,0.00021917,2]
[377934226,1754615443024,-460.0,0.00021917,2]
[377934228,1754615443035,-460.0,0.00021917,2]
[377934231,1754615443046,-460.0,0.00021917,2]
[377934233,1754615443057,-460.0,0.00021917,2]
[377934235,1754615443069,-460.0,0.00021917,2]
[377934237,1754615443080,-460.0,0.00021917,2]
[377934239,1754615443092,-518.3080796,0.00021917,2]
[377934242,1754615443104,-460.0,0.00021917,2]
[377934291,1754615443325,-460.0,0.00021917,2]
[377934297,1754615443337,-503.6263899,0.00021917,2]
[377934304,1754615443349,-460.0,0.00021917,2]
[377934309,1754615443360,-460.0,0.00021917,2]
[377934312,1754615443372,-464.3753645,0.00021917,2]
[377934315,1754615443383,-460.0,0.00021917,2]
[377934319,1754615443394,-460.0,0.00021917,2]
[377934324,1754615443409,-465.73729454,0.00021917,2]
[377934326,1754615443419,-460.0,0.00021917,2]
[377934330,1754615443436,-460.0,0.00021917,2]
[377934334,1754615443448,-460.0,0.00021917,2]
[377934339,1754615443459,-460.0,0.00021917,2]
[377934343,1754615443470,-460.0,0.00021917,2]
[377934348,1754615443481,-460.0,0.00021917,2]
[377934352,1754615443492,-460.0,0.00021917,2]
[377934357,1754615443506,-460.0,0.00021917,2]
[377934361,1754615443519,-460.0,0.00021917,2]
[377934368,1754615443539,-456.59073452,0.00021917,2]
[377934370,1754615443552,-460.0,0.00021917,2]
[377934375,1754615443566,-335.90930215,0.00021917,2]
[377934379,1754615443579,-460.0,0.00021917,2]
[377934385,1754615443590,-460.0,0.00021917,2]
[377934390,1754615443604,-460.0,0.00021917,2]
[377934393,1754615443615,-460.0,0.00021917,2]
[377934399,1754615443627,-460.0,0.00021917,2]
[377934402,1754615443643,-460.0,0.00021917,2]
[377934407,1754615443659,-460.0,0.00021917,2]
[377934411,1754615443671,-934.37,0.00021917,2]
[377934414,1754615443682,-460.0,0.00021917,2]
[377934421,1754615443699,-460.0,0.00021917,2]
[377934424,1754615443711,-460.0,0.00021917,2]
[377934427,1754615443727,-460.0,0.00021917,2]
[377934430,1754615443738,-460.0,0.00021917,2]
[377934435,1754615443752,-460.0,0.00021917,2]
[377934439,1754615443764,-460.0,0.00021917,2]
[377934443,1754615443776,-460.0,0.00021917,2]
[377934447,1754615443788,-460.0,0.00021917,2]
[377934451,1754615443799,-509.89,0.00021917,2]
[377934455,1754615443811,-460.0,0.00021917,2]
[377934459,1754615443823,-460.0,0.00021917,2]
[377934463,1754615443835,-460.0,0.00021917,2]
[377934469,1754615443854,-460.0,0.00021917,2]
[377934473,1754615443865,-460.0,0.00021917,2]
[377934475,1754615443877,-460.0,0.00021917,2]
[377934478,1754615443889,-460.0,0.00021917,2]
[377934479,1754615443900,-460.0,0.00021917,2]
[377934483,1754615443916,-460.0,0.00021917,2]
[377934486,1754615443927,-460.0,0.00021917,2]
[377934489,1754615443939,-460.0,0.00021917,2]
[377934492,1754615443951,-460.0,0.00021917,2]
[377934494,1754615443963,-460.0,0.00021917,2]
[377934497,1754615443974,-460.0,0.00021917,2]
[377934501,1754615443986,-460.0,0.00021917,2]
[377934504,1754615443997,-460.0,0.00021917,2]
[377934507,1754615444008,-460.0,0.00021917,2]
[377934510,1754615444019,-460.0,0.00021917,2]
[377934513,1754615444030,-460.0,0.00021917,2]
[377934516,1754615444043,-460.0,0.00021917,2]
[377934519,1754615444054,-460.0,0.00021917,2]
[377934521,1754615444067,-460.0,0.00021917,2]
[377934524,1754615444078,-460.0,0.00021917,2]
[377934527,1754615444089,-577.22863894,0.00021917,2]
[377934530,1754615444104,-460.0,0.00021917,2]
[377934533,1754615444116,-460.0,0.00021917,2]
[377934536,1754615444127,-460.0,0.00021917,2]
[377934539,1754615444138,-460.0,0.00021917,2]
[377934543,1754615444149,-460.0,0.00021917,2]
[377934547,1754615444166,-460.0,0.00021917,2]
[377934551,1754615444179,-460.0,0.00021917,2]
[377934555,1754615444190,-460.0,0.00021917,2]
[377934558,1754615444201,-460.0,0.00021917,2]
[377934561,1754615444212,-460.0,0.00021917,2]
[377934564,1754615444224,-460.0,0.00021917,2]
[377934567,1754615444235,-460.0,0.00021917,2]
[377934570,1754615444245,-460.0,0.00021917,2]
[377934573,1754615444256,-569.29,0.00021917,2]
[377934576,1754615444267,-460.0,0.00021917,2]
[377934578,1754615444279,-362.12289487,0.00021917,2]
[377934580,1754615444289,-251.71281489,0.00021917,2]
[377934583,1754615444300,-460.0,0.00021917,2]
[377934586,1754615444311,-460.0,0.00021917,2]
[377934589,1754615444321,-460.0,0.00021917,2]
[377934591,1754615444331,-206.60055962,0.00021917,2]
[377934593,1754615444343,-460.0,0.00021917,2]
[377934595,1754615444354,-460.0,0.00021917,2]
[377934597,1754615444366,-1043.46,0.00021917,2]
[377934600,1754615444379,-154.10727413,0.00021917,2]
[377934601,1754615444391,-460.0,0.00021917,2]
[377934603,1754615444402,-460.0,0.00021917,2]
[377934606,1754615444417,-460.0,0.00021917,2]
[377934608,1754615444431,-460.0,0.00021917,2]
[377934611,1754615444442,-466.26245428,0.00021917,2]
[377934613,1754615444454,-460.0,0.00021917,2]
[377934615,1754615444465,-460.0,0.00021917,2]
[377934617,1754615444477,-460.0,0.00021917,2]
[377934619,1754615444489,-460.0,0.00021917,2]
[377934621,1754615444501,-460.0,0.00021917,2]
[377934624,1754615444526,-460.0,0.00021917,2]
[377934626,1754615444540,-460.0,0.00021917,2]
[377934628,1754615444553,-460.0,0.00021917,2]
[377934630,1754615444565,-460.0,0.00021917,2]
[377934632,1754615444576,-371.43192655,0.00021917,2]
[377934635,1754615444593,-460.0,0.00021917,2]
[377934637,1754615444605,-460.0,0.00021917,2]
[377934639,1754615444616,-466.44566688,0.00021917,2]
[377934641,1754615444628,-430.42001737,0.00021917,2]
[377934643,1754615444641,-460.0,0.00021917,2]
[377934645,1754615444652,-460.0,0.00021917,2]
[377934647,1754615444670,-460.0,0.00021917,2]
[377934649,1754615444682,-460.0,0.00021917,2]
[377934651,1754615444698,-460.0,0.00021917,2]
[377934653,1754615444709,-460.94290861,0.00021917,2]
[377934654,1754615444722,-460.0,0.00021917,2]
[377934656,1754615444734,-514.15693668,0.00021917,2]
[377934658,1754615444745,-460.0,0.00021917,2]
[377934660,1754615444756,-460.0,0.00021917,2]
[377934662,1754615444767,-460.0,0.00021917,2]
[377934664,1754615444779,-460.0,0.00021917,2]
[377934666,1754615444791,-460.0,0.00021917,2]
[377934668,1754615444804,-460.0,0.00021917,2]
[377934670,1754615444815,-460.0,0.00021917,2]
[377934672,1754615444827,-460.0,0.00021917,2]
[377934674,1754615444839,-460.0,0.00021917,2]
[377934676,1754615444850,-1363.63,0.00021917,2]
[377934678,1754615444861,-460.0,0.00021917,2]
[377934680,1754615444872,-460.0,0.00021917,2]
[377934682,1754615444883,-387.76247186,0.00021917,2]
[377934684,1754615444894,-460.0,0.00021917,2]
[377934687,1754615445125,-461.54873237,0.00021917,2]
[377934689,1754615445136,-460.0,0.00021917,2]
[377934691,1754615445147,-957.03,0.00021917,2]
[377934693,1754615445161,-460.0,0.00021917,2]
[377934695,1754615445172,-460.0,0.00021917,2]
[377934697,1754615445183,-460.0,0.00021917,2]
[377934699,1754615445195,-377.09,0.00021917,2]
[377934701,1754615445206,-460.0,0.00021917,2]
[377934703,1754615445216,-170.35893517,0.00021917,2]
[377934704,1754615445227,-460.0,0.00021917,2]
[377934706,1754615445239,-460.0,0.00021917,2]
[377934708,1754615445250,-460.0,0.00021917,2]
[377934711,1754615445261,-460.0,0.00021917,2]
[377934713,1754615445273,-460.0,0.00021917,2]
[377934715,1754615445285,-460.0,0.00021917,2]
[377934717,1754615445296,-489.04,0.00021917,2]
[377934719,1754615445306,-460.0,0.00021917,2]
[377934721,1754615445319,-359.75597588,0.00021917,2]
[377934723,1754615445331,-460.0,0.00021917,2]
[377934724,1754615445342,-460.0,0.00021917,2]
[377934726,1754615445353,-460.0,0.00021917,2]
[377934728,1754615445364,-152.27314387,0.00021917,2]
[377934730,1754615445375,-460.0,0.00021917,2]
[377934732,1754615445387,-460.0,0.00021917,2]
[377934734,1754615445398,-833.03,0.00021917,2]
[377934736,1754615445413,-460.0,0.00021917,2]
[377934738,1754615445427,-460.0,0.00021917,2]
[377934740,1754615445438,-460.0,0.00021917,2]
[377934742,1754615445449,-460.0,0.00021917,2]
[377934744,1754615445460,-460.0,0.00021917,2]
[377934746,1754615445471,-460.0,0.00021917,2]
[377934748,1754615445482,-460.0,0.00021917,2]
[377934750,1754615445493,-460.0,0.00021917,2]
[377934752,1754615445505,-460.0,0.00021917,2]
[377934754,1754615445518,-460.0,0.00021917,2]
[377934756,1754615445529,-460.0,0.00021917,2]
[377934758,1754615445540,-460.0,0.00021917,2]
[377934760,1754615445553,-460.0,0.00021917,2]
[377934762,1754615445564,-460.0,0.00021917,2]
[377934764,1754615445576,-460.0,0.00021917,2]
[377934766,1754615445588,-593.17,0.00021917,2]
[377934768,1754615445602,-475.87,0.00021917,2]
[377934770,1754615445613,-460.0,0.00021917,2]
[377934772,1754615445623,-460.0,0.00021917,2]
[377934774,1754615445635,-460.0,0.00021917,2]
[377934776,1754615445646,-460.0,0.00021917,2]
[377934779,1754615445665,-460.0,0.00021917,2]
[377934781,1754615445677,-460.0,0.00021917,2]
[377934783,1754615445688,-460.0,0.00021917,2]
[377934785,1754615445700,-460.0,0.00021917,2]
[377934806,1754615445925,-460.0,0.00021917,2]
[377934808,1754615445937,-460.0,0.00021917,2]
[377934810,1754615445948,-1207.71,0.00021917,2]
[377934812,1754615445959,-460.0,0.00021917,2]
[377934814,1754615445970,-544.41696145,0.00021917,2]
[377934816,1754615445981,-460.0,0.00021917,2]
[377934817,1754615445992,-848.86,0.00021917,2]
[377934819,1754615446003,-460.0,0.00021917,2]
[377934821,1754615446013,-460.0,0.00021917,2]
[377934824,1754615446024,-460.0,0.00021917,2]
[377934826,1754615446035,-460.0,0.00021917,2]
[377934828,1754615446048,-460.0,0.00021917,2]
[377934829,1754615446058,-460.0,0.00021917,2]
[377934832,1754615446069,-563.2,0.00021917,2]
[377934834,1754615446081,-468.78053955,0.00021917,2]
[377934836,1754615446091,-460.0,0.00021917,2]
[377934838,1754615446103,-689.04,0.00021917,2]
[377934840,1754615446114,-554.05,0.00021917,2]
[377934842,1754615446125,-460.0,0.00021917,2]
[377934844,1754615446136,-771.43,0.00021917,2]
[377934845,1754615446152,-460.0,0.00021917,2]
[377934847,1754615446169,-460.0,0.00021917,2]
[377934849,1754615446183,-460.0,0.00021917,2]
[377934851,1754615446193,-460.0,0.00021917,2]
[377934854,1754615446205,-554.49533382,0.00021973,2]
[377934856,1754615446216,-500.0,0.00021973,2]
[377934857,1754615446227,-503.50883992,0.00021973,2]
[377934859,1754615446239,-500.0,0.00021973,2]
[377934861,1754615446250,-500.0,0.00021973,2]
[377934863,1754615446261,-500.0,0.00021973,2]
[377934865,1754615446272,-500.0,0.00021973,2]
[377934867,1754615446283,-500.0,0.00021973,2]
[377934870,1754615446294,-500.0,0.00021973,2]
[377934872,1754615446305,-500.0,0.00021973,2]
[377934874,1754615446317,-500.0,0.00021973,2]
[377934875,1754615446328,-500.0,0.00021973,2]
[377934877,1754615446339,-500.0,0.000221,2]
[377934879,1754615446350,-460.0,0.00022191,2]
[377934881,1754615446363,-460.0,0.00022191,2]
[377934884,1754615446374,-460.0,0.00022191,2]
[377934886,1754615446385,-460.0,0.00022191,2]
[377934887,1754615446396,-463.4570693,0.00022191,2]
[377934890,1754615446410,-460.0,0.00022191,2]
[377934892,1754615446421,-460.0,0.00022191,2]
[377934894,1754615446432,-169.3678419,0.00022191,2]
[377934896,1754615446443,-460.0,0.00022191,2]
[377934898,1754615446454,-460.0,0.00022191,2]
[377934900,1754615446466,-494.26,0.00022191,2]
[377934902,1754615446478,-934.37,0.00022191,2]
[377934904,1754615446490,-460.0,0.00022191,2]
[377934906,1754615446500,-460.0,0.00022191,2]
[377934908,1754615446518,-460.0,0.00022191,2]
[377934910,1754615446529,-460.0,0.00022191,2]
[377934912,1754615446539,-589.79,0.00022191,2]
[377934914,1754615446553,-460.0,0.00022191,2]
[377934916,1754615446563,-460.0,0.00022191,2]
[377934918,1754615446574,-460.0,0.00022191,2]
[377934920,1754615446584,-460.0,0.00022191,2]
[377934921,1754615446596,-541.96,0.00022191,2]
[377934923,1754615446607,-460.0,0.00022191,2]
[377934925,1754615446619,-181.92976267,0.00022191,2]
[377934927,1754615446629,-460.0,0.00022191,2]
[377934930,1754615446641,-460.0,0.00022191,2]
[377934932,1754615446652,-460.0,0.00022191,2]
[377934934,1754615446669,-460.0,0.00022191,2]
[377934935,1754615446680,-569.29,0.00022191,2]
[377934938,1754615446692,-475.65,0.00022191,2]
[377934940,1754615446703,-460.0,0.00022191,2]
[377934942,1754615446714,-1043.46,0.00022191,2]
[377934943,1754615446724,-460.0,0.00022191,2]
[377934946,1754615446736,-460.0,0.00022191,2]
[377934948,1754615446746,-460.0,0.00022191,2]
[377934950,1754615446757,-460.0,0.00022191,2]
[377934952,1754615446768,-460.0,0.00022191,2]
[377934953,1754615446780,-460.0,0.00022191,2]
[377934955,1754615446791,-460.0,0.00022191,2]
[377934958,1754615446802,-479.16,0.00022191,2]
[377934960,1754615446813,-460.0,0.00022191,2]
[377934961,1754615446823,-460.0,0.00022191,2]
[377934963,1754615446834,-460.0,0.00022191,2]
[377934965,1754615446845,-460.0,0.00022191,2]
[377934967,1754615446856,-578.24,0.00022191,2]
[377934969,1754615446866,-207.87176919,0.00022191,2]
[377934971,1754615446881,-1363.63,0.00022191,2]
[377934973,1754615446892,-460.0,0.00022191,2]
[377934975,1754615446903,-460.0,0.00022191,2]
[377934977,1754615446920,-460.0,0.00022191,2]
[377934979,1754615446931,-957.03,0.00022191,2]
[377934981,1754615446942,-460.0,0.00022191,2]
[377934983,1754615446952,-469.61,0.00022191,2]
[377934985,1754615446963,-503.19064146,0.00022191,2]
[377934987,1754615446974,-498.2,0.00022191,2]
[377934989,1754615446985,-460.0,0.00022191,2]
[377934991,1754615446997,-601.68,0.00022191,2]
[377934993,1754615447007,-489.04,0.00022191,2]
[377934994,1754615447018,-460.0,0.00022191,2]
[377934996,1754615447029,-259.21,0.00022191,2]
[377934998,1754615447039,-460.0,0.00022191,2]
[377935000,1754615447050,-833.03,0.00022191,2]
[377935002,1754615447061,-460.0,0.00022191,2]
[377935004,1754615447072,-460.0,0.00022191,2]
[377935006,1754615447083,-460.0,0.00022191,2]
[377935008,1754615447093,-460.0,0.00022191,2]
[377935010,1754615447104,-460.0,0.00022191,2]
[377935011,1754615447115,-460.0,0.00022191,2]
[377935013,1754615447127,-593.17,0.00022191,2]
[377935015,1754615447139,-475.87,0.00022191,2]
[377935017,1754615447150,-460.0,0.00022191,2]
[377935019,1754615447168,-460.0,0.00022191,2]
[377935021,1754615447180,-460.0,0.00022191,2]
[377935025,1754615447193,-460.0,0.00022191,2]
[377935027,1754615447204,-460.0,0.00022191,2]
[377935029,1754615447214,-1207.71,0.00022191,2]
[377935030,1754615447225,-266.82679355,0.00022191,2]
[377935032,1754615447236,-848.86,0.00022191,2]
[377935034,1754615447248,-460.0,0.00022191,2]
[377935036,1754615447259,-460.0,0.00022191,2]
[377935038,1754615447270,-460.0,0.00022191,2]
[377935040,1754615447281,-460.0,0.00022191,2]
[377935058,1754615447504,-460.0,0.00022191,2]
[377935060,1754615447519,-563.2,0.00022191,2]
[377935062,1754615447530,-689.04,0.00022191,2]
[377935064,1754615447542,-554.05,0.00022191,2]
[377935066,1754615447557,-460.0,0.00022191,2]
[377935068,1754615447568,-771.43,0.00022191,2]
[377935070,1754615447579,-460.0,0.00022191,2]
[377935072,1754615447591,-396.22467363,0.00022209,2]
[377935074,1754615447604,-200.0,0.00022246,15]
[377935075,1754615447616,-200.0,0.00022246,15]
[377935077,1754615447628,-460.0,0.00022465,2]
[377935079,1754615447639,-460.0,0.00022465,2]
[377935081,1754615447650,-244.66764477,0.00022465,2]
[377935083,1754615447666,-460.0,0.00022465,2]
[377935085,1754615447676,-934.37,0.00022465,2]
[377935087,1754615447688,-460.0,0.00022465,2]
[377935088,1754615447699,-460.0,0.00022465,2]
[377935090,1754615447711,-460.0,0.00022465,2]
[377935092,1754615447723,-460.0,0.00022465,2]
[377935094,1754615447735,-460.0,0.00022465,2]
[377935096,1754615447746,-255.56,0.00022465,2]
[377935098,1754615447757,-460.0,0.00022465,2]
[377935100,1754615447768,-460.0,0.00022465,2]
[377935102,1754615447778,-460.0,0.00022465,2]
[377935104,1754615447789,-569.29,0.00022465,2]
[377935106,1754615447800,-460.0,0.00022465,2]
[377935108,1754615447813,-1043.46,0.00022465,2]
[377935109,1754615447826,-460.0,0.00022465,2]
[377935111,1754615447838,-460.0,0.00022465,2]
[377935113,1754615447848,-221.23,0.00022465,2]
[377935115,1754615447859,-460.0,0.00022465,2]
[377935117,1754615447870,-460.0,0.00022465,2]
[377935119,1754615447880,-460.0,0.00022465,2]
[377935121,1754615447891,-460.0,0.00022465,2]
[377935122,1754615447901,-527.76,0.00022465,2]
[377935124,1754615447918,-214.76705046,0.00022465,2]
[377935126,1754615447931,-460.0,0.00022465,2]
[377935128,1754615447943,-1363.63,0.00022465,2]
[377935130,1754615447955,-460.0,0.00022465,2]
[377935132,1754615447966,-460.0,0.00022465,2]
[377935134,1754615447977,-957.03,0.00022465,2]
[377935136,1754615447987,-460.0,0.00022465,2]
[377935138,1754615447998,-460.0,0.00022465,2]
[377935140,1754615448009,-489.04,0.00022465,2]
[377935141,1754615448023,-460.0,0.00022465,2]
[377935143,1754615448041,-833.03,0.00022465,2]
[377935145,1754615448053,-460.0,0.00022465,2]
[377935147,1754615448065,-460.0,0.00022465,2]
[377935149,1754615448080,-460.0,0.00022465,2]
[377935151,1754615448091,-460.0,0.00022465,2]
[377935153,1754615448101,-460.0,0.00022465,2]
[377935155,1754615448113,-460.0,0.00022465,2]
[377935157,1754615448124,-593.17,0.00022465,2]
[377935159,1754615448135,-475.87,0.00022465,2]
[377935160,1754615448150,-541.68,0.00022465,2]
[377935162,1754615448175,-460.0,0.00022465,2]
[377935164,1754615448187,-460.0,0.00022465,2]
[377935166,1754615448197,-460.0,0.00022465,2]
[377935168,1754615448209,-1207.71,0.00022465,2]
[377935170,1754615448220,-848.86,0.00022465,2]
[377935172,1754615448232,-460.0,0.00022465,2]
[377935174,1754615448244,-460.0,0.00022465,2]
[377935175,1754615448256,-460.0,0.00022465,2]
[377935177,1754615448267,-460.0,0.00022465,2]
[377935179,1754615448279,-349.58,0.00022465,2]
[377935181,1754615448289,-563.2,0.00022465,2]
[377935183,1754615448300,-689.04,0.00022465,2]
[377935185,1754615448312,-554.05,0.00022465,2]
[377935187,1754615448324,-460.0,0.00022465,2]
[377935188,1754615448334,-771.43,0.00022465,2]
[377935190,1754615448346,-1000.0,0.00022521,2]
[377935192,1754615448361,-500.0,0.00022521,2]
[377935194,1754615448371,-1000.0,0.00022521,2]
[377935196,1754615448382,-176.02074832,0.00022521,2]
[377935198,1754615448393,-204.4640662,0.00022521,2]
[377935200,1754615448406,-1000.0,0.00022521,2]
[377935202,1754615448424,-698.58295564,0.00022521,2]
[377935205,1754615448440,-1000.0,0.00022521,2]
[377935206,1754615448451,-160.0,0.00022718,2]
[377935208,1754615448465,-160.0,0.00022719,2]
[377935210,1754615448476,-216.52217562,0.00022719,2]
[377935212,1754615448488,-231.83071243,0.00022719,2]
[377935214,1754615448499,-160.0,0.00022719,2]
[377935216,1754615448516,-160.0,0.00022719,2]
[377935218,1754615448528,-842.63596909,0.00022719,2]
[377935220,1754615448540,-160.0,0.00022719,2]
[377935222,1754615448552,-160.0,0.00022719,2]
[377935241,1754615448799,-461.3695942,0.00022719,2]
[377935243,1754615448810,-527.57568145,0.00022719,2]
[377935245,1754615448821,-312.16666667,0.00022719,2]
[377935247,1754615448834,-160.0,0.00022719,2]
[377935249,1754615448845,-12660.90439413,0.00022719,2]
[377935251,1754615448857,-215.31718835,0.00022719,2]
[377935253,1754615448868,-934.37,0.00022739,2]
[377935255,1754615448880,-460.0,0.00022739,2]
[377935257,1754615448896,-460.0,0.00022739,2]
[377935259,1754615448909,-460.0,0.00022739,2]
[377935260,1754615448928,-460.0,0.00022739,2]
[377935262,1754615448940,-460.0,0.00022739,2]
[377935264,1754615448952,-460.0,0.00022739,2]
[377935266,1754615448963,-569.29,0.00022739,2]
[377935268,1754615448974,-460.0,0.00022739,2]
[377935270,1754615448985,-1043.46,0.00022739,2]
[377935272,1754615449000,-483.17,0.00022739,2]
[377935273,1754615449011,-460.0,0.00022739,2]
[377935275,1754615449022,-460.0,0.00022739,2]
[377935277,1754615449033,-460.0,0.00022739,2]
[377935279,1754615449045,-1363.63,0.00022739,2]
[377935281,1754615449057,-460.0,0.00022739,2]
[377935283,1754615449068,-460.0,0.00022739,2]
[377935285,1754615449079,-957.03,0.00022739,2]
[377935287,1754615449090,-254.97598012,0.00022739,2]
[377935288,1754615449104,-460.0,0.00022739,2]
[377935289,1754615449115,-489.04,0.00022739,2]
[377935290,1754615449126,-460.0,0.00022739,2]
[377935291,1754615449137,-833.03,0.00022739,2]
[377935292,1754615449148,-357.93,0.00022739,2]
[377935293,1754615449159,-460.0,0.00022739,2]
[377935294,1754615449169,-460.0,0.00022739,2]
[377935295,1754615449181,-460.0,0.00022739,2]
[377935296,1754615449192,-460.0,0.00022739,2]
[377935297,1754615449210,-460.0,0.00022739,2]
[377935298,1754615449221,-593.17,0.00022739,2]
[377935299,1754615449235,-475.87,0.00022739,2]
[377935300,1754615449246,-217.28,0.00022739,2]
[377935301,1754615449257,-460.0,0.00022739,2]
[377935302,1754615449269,-460.0,0.00022739,2]
[377935303,1754615449280,-1207.71,0.00022739,2]
[377935304,1754615449291,-848.86,0.00022739,2]
[377935305,1754615449302,-460.0,0.00022739,2]
[377935307,1754615449315,-460.0,0.00022739,2]
[377935309,1754615449325,-460.0,0.00022739,2]
[377935311,1754615449337,-460.0,0.00022739,2]
[377935312,1754615449356,-563.2,0.00022739,2]
[377935314,1754615449378,-689.04,0.00022739,2]
[377935316,1754615449396,-554.05,0.00022739,2]
[377935318,1754615449407,-771.43,0.00022739,2]
[377935320,1754615449431,-589.68540633,0.00022912,2]
[377935322,1754615449444,-160.0,0.00023,2]
[377935324,1754615449463,-1000.0,0.00023012,2]
[377935325,1754615449474,-300.0,0.00023012,2]
[377935327,1754615449486,-151.0,0.00023012,2]
[377935329,1754615449497,-151.0,0.00023012,2]
[377935331,1754615449513,-1000.0,0.00023012,2]
[377935333,1754615449527,-151.0,0.00023012,2]
[377935335,1754615449539,-300.0,0.00023012,2]
[377935337,1754615449551,-151.0,0.00023012,2]
[377935339,1754615449565,-151.0,0.00023012,2]
[377935341,1754615449577,-1000.0,0.00023012,2]
[377935343,1754615449591,-300.0,0.00023012,2]
[377935344,1754615449604,-151.0,0.00023012,2]
[377935346,1754615449617,-151.0,0.00023012,2]
[377935348,1754615449632,-1000.0,0.00023012,2]
[377935350,1754615449644,-300.0,0.00023012,2]
[377935352,1754615449657,-1000.0,0.00023012,2]
[377935354,1754615449677,-151.0,0.00023012,2]
[377935356,1754615449688,-300.0,0.00023012,2]
[377935358,1754615449699,-1000.0,0.00023012,2]
[377935360,1754615449715,-151.0,0.00023012,2]
[377935362,1754615449725,-300.0,0.00023012,2]
[377935364,1754615449740,-151.0,0.00023012,2]
[377935365,1754615449755,-300.0,0.00023012,2]
[377935367,1754615449769,-1000.0,0.00023012,2]
[377935369,1754615449780,-151.0,0.00023012,2]
[377935371,1754615449793,-300.0,0.00023012,2]
[377935374,1754615449808,-1000.0,0.00023012,2]
[377935375,1754615449819,-151.0,0.00023012,2]
[377935377,1754615449831,-1000.0,0.00023012,2]
[377935379,1754615449848,-300.0,0.00023012,2]
[377935381,1754615449863,-151.0,0.00023012,2]
[377935383,1754615449876,-1000.0,0.00023012,2]
[377935385,1754615449888,-300.0,0.00023012,2]
[377935387,1754615449898,-151.0,0.00023012,2]
[377935389,1754615449909,-1000.0,0.00023012,2]
[377935391,1754615449928,-300.0,0.00023012,2]
[377935393,1754615449939,-181.22352127,0.00023012,2]
[377935394,1754615449953,-151.0,0.00023012,2]
[377935396,1754615449966,-151.0,0.00023012,2]
[377935398,1754615449978,-151.0,0.00023012,2]
[377935400,1754615449989,-151.0,0.00023012,2]
[377935402,1754615450001,-151.0,0.00023012,2]